[Event "Late-Titled-Tuesday-Blitz-October-17-2023"]
[Site "Chess.com"]
[Date "2023.10.17"]
[Round "1"]
[White "Alphafischer2019"]
[Black "effefe"]
[Result "0-1"]
[WhiteElo "2603"]
[BlackElo "2335"]
[TimeControl "180+1"]
[EndTime "14:09:16 PDT"]
[Termination "effefe won by checkmate"]

1. e4 {[%clk 0:03:00.9]} 1... d6 {[%clk 0:02:56]} 2. d3 {[%clk 0:03:00.6]} 2...
Nf6 {[%clk 0:02:45.4]} 3. g3 {[%clk 0:03:00.9]} 3... g6 {[%clk 0:02:30.1]} 4.
Bg2 {[%clk 0:03:00.7]} 4... Bg7 {[%clk 0:02:27.6]} 5. f4 {[%clk 0:03:01.4]} 5...
O-O {[%clk 0:02:27.4]} 6. Nf3 {[%clk 0:03:01.5]} 6... Nc6 {[%clk 0:02:23.4]} 7.
O-O {[%clk 0:03:00.3]} 7... e5 {[%clk 0:02:22]} 8. c3 {[%clk 0:02:43]} 8... d5
{[%clk 0:02:11.9]} 9. fxe5 {[%clk 0:02:24.7]} 9... Ng4 {[%clk 0:02:06.9]} 10.
exd5 {[%clk 0:02:19.3]} 10... Ncxe5 {[%clk 0:01:58.6]} 11. Nxe5 {[%clk
0:02:18.3]} 11... Nxe5 {[%clk 0:01:53.1]} 12. Bf4 {[%clk 0:02:05.4]} 12... Bg4
{[%clk 0:01:41.2]} 13. Qd2 {[%clk 0:02:03.9]} 13... Bf5 {[%clk 0:01:41.1]} 14.
d4 {[%clk 0:01:50.4]} 14... Nc4 {[%clk 0:01:32]} 15. Qf2 {[%clk 0:01:49.7]}
15... Nb6 {[%clk 0:01:16.2]} 16. d6 {[%clk 0:01:28.1]} 16... c6 {[%clk
0:01:06.3]} 17. Nd2 {[%clk 0:01:24.7]} 17... Nc8 {[%clk 0:00:55.8]} 18. Nc4
{[%clk 0:01:22.4]} 18... Bd3 {[%clk 0:00:50.5]} 19. d7 {[%clk 0:01:10.4]} 19...
Bxc4 {[%clk 0:00:26.7]} 20. dxc8=Q {[%clk 0:01:09.4]} 20... Rxc8 {[%clk
0:00:26.6]} 21. Rfe1 {[%clk 0:01:08.8]} 21... Qd7 {[%clk 0:00:23.9]} 22. Be5
{[%clk 0:01:03.8]} 22... Bd5 {[%clk 0:00:23.4]} 23. Bxg7 {[%clk 0:01:03.8]}
23... Kxg7 {[%clk 0:00:22.3]} 24. Re5 {[%clk 0:01:00.2]} 24... Bxg2 {[%clk
0:00:21]} 25. Qxg2 {[%clk 0:01:01.1]} 25... Rce8 {[%clk 0:00:20.8]} 26. Rae1
{[%clk 0:01:01.3]} 26... Rxe5 {[%clk 0:00:21.1]} 27. Rxe5 {[%clk 0:01:02.1]}
27... Re8 {[%clk 0:00:21.3]} 28. Qe2 {[%clk 0:01:02.6]} 28... Rxe5 {[%clk
0:00:20.5]} 29. Qxe5+ {[%clk 0:01:02.4]} 29... f6 {[%clk 0:00:20.6]} 30. Qe4
{[%clk 0:01:00.6]} 30... Qd6 {[%clk 0:00:18.3]} 31. Kf2 {[%clk 0:00:58.8]} 31...
f5 {[%clk 0:00:15.7]} 32. Qe3 {[%clk 0:00:57]} 32... Kf6 {[%clk 0:00:12.7]} 33.
c4 {[%clk 0:00:56.8]} 33... Qb4 {[%clk 0:00:10.9]} 34. b3 {[%clk 0:00:56]} 34...
Qd6 {[%clk 0:00:09.1]} 35. h4 {[%clk 0:00:47.5]} 35... h6 {[%clk 0:00:09.2]} 36.
Kf3 {[%clk 0:00:33.5]} 36... g5 {[%clk 0:00:09.4]} 37. hxg5+ {[%clk 0:00:34.2]}
37... hxg5 {[%clk 0:00:10.2]} 38. Qc3 {[%clk 0:00:33.1]} 38... Kg6 {[%clk
0:00:09.5]} 39. Qe3 {[%clk 0:00:25.7]} 39... Qf6 {[%clk 0:00:08.9]} 40. Qe8+
{[%clk 0:00:23.6]} 40... Kh6 {[%clk 0:00:08.4]} 41. Qd7 {[%clk 0:00:22.6]} 41...
g4+ {[%clk 0:00:07]} 42. Ke2 {[%clk 0:00:15.1]} 42... Kg5 {[%clk 0:00:05.9]} 43.
Kd3 {[%clk 0:00:12.1]} 43... f4 {[%clk 0:00:06.1]} 44. gxf4+ {[%clk 0:00:13]}
44... Kxf4 {[%clk 0:00:05.9]} 45. Qc7+ {[%clk 0:00:13.3]} 45... Kf3 {[%clk
0:00:05.4]} 46. Qxb7 {[%clk 0:00:12.3]} 46... Qf5+ {[%clk 0:00:05.8]} 47. Kc3
{[%clk 0:00:11.8]} 47... g3 {[%clk 0:00:05.8]} 48. Qxc6+ {[%clk 0:00:11.5]}
48... Kf2 {[%clk 0:00:06.4]} 49. d5 {[%clk 0:00:07.1]} 49... Qf3+ {[%clk
0:00:06.7]} 50. Kb4 {[%clk 0:00:06.8]} 50... g2 {[%clk 0:00:07.3]} 51. Qc5+
{[%clk 0:00:07.5]} 51... Kf1 {[%clk 0:00:07.2]} 52. d6 {[%clk 0:00:06.3]} 52...
g1=Q {[%clk 0:00:07.5]} 53. Qxg1+ {[%clk 0:00:04.2]} 53... Kxg1 {[%clk
0:00:08.4]} 54. Kc5 {[%clk 0:00:03.8]} 54... Qe3+ {[%clk 0:00:08.4]} 55. Kc6
{[%clk 0:00:03.5]} 55... Qe4+ {[%clk 0:00:08.5]} 56. Kc7 {[%clk 0:00:03.1]}
56... Qe5 {[%clk 0:00:08.1]} 57. Kc6 {[%clk 0:00:02.9]} 57... Qe4+ {[%clk
0:00:07.8]} 58. Kc7 {[%clk 0:00:03.1]} 58... Qd4 {[%clk 0:00:07.3]} 59. d7
{[%clk 0:00:03]} 59... Qc5+ {[%clk 0:00:07.8]} 60. Kb7 {[%clk 0:00:03.1]} 60...
Qd6 {[%clk 0:00:04.9]} 61. Kc8 {[%clk 0:00:03.2]} 61... Qc6+ {[%clk 0:00:04.9]}
62. Kd8 {[%clk 0:00:03.9]} 62... Kf2 {[%clk 0:00:04.5]} 63. Ke7 {[%clk
0:00:04.3]} 63... Qc5+ {[%clk 0:00:04.7]} 64. Ke6 {[%clk 0:00:04.5]} 64... Qc6+
{[%clk 0:00:03.6]} 65. Ke7 {[%clk 0:00:05]} 65... Qc7 {[%clk 0:00:04.2]} 66. Ke6
{[%clk 0:00:04.6]} 66... Ke3 {[%clk 0:00:03.3]} 67. Ke7 {[%clk 0:00:02]} 67...
Qc5+ {[%clk 0:00:03.2]} 68. Ke8 {[%clk 0:00:02.9]} 68... Qc6 {[%clk 0:00:03.3]}
69. Ke7 {[%clk 0:00:03.1]} 69... Qb7 {[%clk 0:00:03.6]} 70. Ke8 {[%clk
0:00:03.2]} 70... Qc6 {[%clk 0:00:03.9]} 71. Ke7 {[%clk 0:00:03.5]} 71... Qc5+
{[%clk 0:00:04.5]} 72. Ke8 {[%clk 0:00:03.9]} 72... Qe5+ {[%clk 0:00:05]} 73.
Kf7 {[%clk 0:00:04.5]} 73... Qd6 {[%clk 0:00:05.2]} 74. Ke8 {[%clk 0:00:04.7]}
74... Qe6+ {[%clk 0:00:05.7]} 75. Kd8 {[%clk 0:00:05.6]} 75... Kd4 {[%clk
0:00:05.9]} 76. Kc7 {[%clk 0:00:06.3]} 76... Qe7 {[%clk 0:00:05.2]} 77. Kc8
{[%clk 0:00:06.5]} 77... Qc5+ {[%clk 0:00:05.8]} 78. Kb7 {[%clk 0:00:07.3]}
78... Qd6 {[%clk 0:00:04.1]} 79. Kc8 {[%clk 0:00:08.2]} 79... Qc6+ {[%clk
0:00:04.2]} 80. Kd8 {[%clk 0:00:09.1]} 80... Kc5 {[%clk 0:00:03.8]} 81. Ke7
{[%clk 0:00:08.3]} 81... Qd6+ {[%clk 0:00:04.4]} 82. Kd8 {[%clk 0:00:07.8]}
82... Kc6 {[%clk 0:00:04.3]} 83. Kc8 {[%clk 0:00:08.7]} 83... Qxd7+ {[%clk
0:00:04.7]} 84. Kb8 {[%clk 0:00:09.5]} 84... Qb7# {[%clk 0:00:05.3]} 0-1

[Event "Late-Titled-Tuesday-Blitz-October-17-2023"]
[Site "Chess.com"]
[Date "2023.10.17"]
[Round "1"]
[White "pedromartinez91"]
[Black "Mariia89"]
[Result "1-0"]
[WhiteElo "2529"]
[BlackElo "2093"]
[TimeControl "180+1"]
[EndTime "14:09:58 PDT"]
[Termination "pedromartinez91 won on time"]

1. d4 {[%clk 0:03:00]} 1... Nf6 {[%clk 0:02:57.7]} 2. c4 {[%clk 0:02:59.8]} 2...
c5 {[%clk 0:02:58.1]} 3. d5 {[%clk 0:02:59.6]} 3... b5 {[%clk 0:02:59]} 4. cxb5
{[%clk 0:03:00.4]} 4... a6 {[%clk 0:02:59.6]} 5. bxa6 {[%clk 0:03:01.1]} 5...
Bxa6 {[%clk 0:03:00.5]} 6. Nc3 {[%clk 0:02:58.7]} 6... d6 {[%clk 0:03:00.9]} 7.
e4 {[%clk 0:02:58.4]} 7... Bxf1 {[%clk 0:03:00.3]} 8. Kxf1 {[%clk 0:02:59.3]}
8... g6 {[%clk 0:03:01]} 9. g3 {[%clk 0:02:59.2]} 9... Bg7 {[%clk 0:03:01.7]}
10. Kg2 {[%clk 0:02:59.8]} 10... O-O {[%clk 0:03:02.6]} 11. Nf3 {[%clk
0:02:57.8]} 11... Nbd7 {[%clk 0:03:03.3]} 12. Qe2 {[%clk 0:02:56.5]} 12... Qa5
{[%clk 0:03:01.7]} 13. a4 {[%clk 0:02:53.2]} 13... Ne8 {[%clk 0:02:57.2]} 14.
Nb5 {[%clk 0:02:50.6]} 14... Nc7 {[%clk 0:02:56]} 15. Bd2 {[%clk 0:02:47]} 15...
Qb6 {[%clk 0:02:56.1]} 16. Bc3 {[%clk 0:02:44.6]} 16... Rfb8 {[%clk 0:02:45.1]}
17. Nxc7 {[%clk 0:02:09.5]} 17... Qxc7 {[%clk 0:02:39.9]} 18. h4 {[%clk
0:02:06.5]} 18... h5 {[%clk 0:02:39.2]} 19. Ra3 {[%clk 0:01:52]} 19... Rb7
{[%clk 0:02:22.2]} 20. Re1 {[%clk 0:01:39.6]} 20... Rab8 {[%clk 0:02:19.2]} 21.
e5 {[%clk 0:01:30.5]} 21... dxe5 {[%clk 0:02:16.4]} 22. Nxe5 {[%clk 0:01:30.4]}
22... Nxe5 {[%clk 0:02:16.7]} 23. Bxe5 {[%clk 0:01:31.3]} 23... Bxe5 {[%clk
0:02:15.9]} 24. Qxe5 {[%clk 0:01:32.2]} 24... Qd8 {[%clk 0:02:03.8]} 25. Rf3
{[%clk 0:01:25.5]} 25... Ra8 {[%clk 0:01:50.1]} 26. Re4 {[%clk 0:01:17]} 26...
Rd7 {[%clk 0:01:43.8]} 27. Qf4 {[%clk 0:01:17]} 27... Qf8 {[%clk 0:01:40.1]} 28.
Re5 {[%clk 0:01:13.3]} 28... Rd6 {[%clk 0:01:32.5]} 29. Qe4 {[%clk 0:01:08.8]}
29... Ra7 {[%clk 0:01:29]} 30. b3 {[%clk 0:01:05.9]} 30... Qd8 {[%clk
0:01:26.3]} 31. Re3 {[%clk 0:01:03.1]} 31... Rdd7 {[%clk 0:01:21.9]} 32. Qc4
{[%clk 0:01:02.8]} 32... Qc8 {[%clk 0:01:16.1]} 33. Rg5 {[%clk 0:01:02.8]} 33...
Rd6 {[%clk 0:01:11.7]} 34. Rc3 {[%clk 0:00:55.6]} 34... Rc7 {[%clk 0:01:10.3]}
35. b4 {[%clk 0:00:55.9]} 35... Rb6 {[%clk 0:00:52.4]} 36. bxc5 {[%clk
0:00:55.3]} 36... Rb2 {[%clk 0:00:52.7]} 37. d6 {[%clk 0:00:53.1]} 37... exd6
{[%clk 0:00:52]} 38. Rxg6+ {[%clk 0:00:53.2]} 38... Kf8 {[%clk 0:00:46.8]} 39.
Rh6 {[%clk 0:00:51.6]} 39... Qf5 {[%clk 0:00:45.2]} 40. Qd4 {[%clk 0:00:43.7]}
40... Rxc5 {[%clk 0:00:34.4]} 41. Qxd6+ {[%clk 0:00:43.7]} 41... Kg7 {[%clk
0:00:33.8]} 42. Qxc5 {[%clk 0:00:44.1]} 42... Qxc5 {[%clk 0:00:28.6]} 43. Rh7+
{[%clk 0:00:43.2]} 43... Kxh7 {[%clk 0:00:28]} 44. Rxc5 {[%clk 0:00:44.1]} 44...
Kg6 {[%clk 0:00:27.2]} 45. Rg5+ {[%clk 0:00:43.8]} 45... Kh6 {[%clk 0:00:26.6]}
46. a5 {[%clk 0:00:44.2]} 46... Ra2 {[%clk 0:00:26.9]} 47. Rb5 {[%clk
0:00:44.3]} 47... f6 {[%clk 0:00:26]} 48. Kf3 {[%clk 0:00:44.8]} 48... Kg6
{[%clk 0:00:26.6]} 49. Ke3 {[%clk 0:00:44.9]} 49... Ra3+ {[%clk 0:00:25.4]} 50.
Ke2 {[%clk 0:00:37]} 50... Ra2+ {[%clk 0:00:25.5]} 51. Kf3 {[%clk 0:00:37.7]}
51... Ra3+ {[%clk 0:00:25.8]} 52. Kg2 {[%clk 0:00:38.4]} 52... Ra2 {[%clk
0:00:26.3]} 53. Kg1 {[%clk 0:00:36.3]} 53... Ra1+ {[%clk 0:00:25.9]} 54. Kh2
{[%clk 0:00:36.2]} 54... Ra2 {[%clk 0:00:26.7]} 55. Kg1 {[%clk 0:00:36.2]} 55...
Ra1+ {[%clk 0:00:27]} 56. Kh2 {[%clk 0:00:33.4]} 56... Ra2 {[%clk 0:00:27.3]}
57. Kh3 {[%clk 0:00:34.3]} 57... Rxf2 {[%clk 0:00:25.2]} 58. Rb8 {[%clk
0:00:33]} 58... Ra2 {[%clk 0:00:24.8]} 59. Rg8+ {[%clk 0:00:30.4]} 59... Kf7
{[%clk 0:00:24.6]} 60. Ra8 {[%clk 0:00:31.3]} 60... Kg6 {[%clk 0:00:22.9]} 61.
a6 {[%clk 0:00:31.6]} 61... Kf5 {[%clk 0:00:19.2]} 62. a7 {[%clk 0:00:27.2]}
62... Ra3 {[%clk 0:00:19]} 63. Rh8 {[%clk 0:00:27.2]} 63... Rxa7 {[%clk
0:00:16.6]} 64. Rxh5+ {[%clk 0:00:27.8]} 64... Kg6 {[%clk 0:00:17.3]} 65. Rb5
{[%clk 0:00:28.5]} 65... Ra3 {[%clk 0:00:13.2]} 66. Rb4 {[%clk 0:00:29]} 66...
f5 {[%clk 0:00:11]} 67. Kg2 {[%clk 0:00:24.6]} 67... Kh5 {[%clk 0:00:10.5]} 68.
Rf4 {[%clk 0:00:24.5]} 68... Kg6 {[%clk 0:00:10.5]} 69. Rf3 {[%clk 0:00:24.9]}
69... Ra2+ {[%clk 0:00:10.5]} 70. Rf2 {[%clk 0:00:25]} 70... Ra3 {[%clk
0:00:10.4]} 71. Rb2 {[%clk 0:00:23.5]} 71... Ra5 {[%clk 0:00:09.6]} 72. Kf3
{[%clk 0:00:22.7]} 72... Ra3+ {[%clk 0:00:08.4]} 73. Kf2 {[%clk 0:00:22.9]}
73... Kh5 {[%clk 0:00:07]} 74. Rb8 {[%clk 0:00:21]} 74... Kg6 {[%clk 0:00:05]}
75. Rg8+ {[%clk 0:00:21.1]} 75... Kf7 {[%clk 0:00:05.2]} 76. Rc8 {[%clk
0:00:19.9]} 76... Kf6 {[%clk 0:00:05.5]} 77. Rd8 {[%clk 0:00:19.7]} 77... Ke7
{[%clk 0:00:05.1]} 78. Rd4 {[%clk 0:00:19.4]} 78... Kf6 {[%clk 0:00:05.5]} 79.
Rf4 {[%clk 0:00:19.7]} 79... Kg6 {[%clk 0:00:06.2]} 80. Rf3 {[%clk 0:00:20.1]}
80... Ra2+ {[%clk 0:00:06.2]} 81. Ke3 {[%clk 0:00:20.7]} 81... Ra3+ {[%clk
0:00:06.8]} 82. Kf4 {[%clk 0:00:20.9]} 82... Ra4+ {[%clk 0:00:07.2]} 83. Ke5
{[%clk 0:00:21.3]} 83... Re4+ {[%clk 0:00:07.7]} 84. Kd5 {[%clk 0:00:21.5]}
84... Re1 {[%clk 0:00:08.6]} 85. Kd4 {[%clk 0:00:18.2]} 85... Re8 {[%clk
0:00:08.9]} 86. Re3 {[%clk 0:00:17.4]} 86... Rd8+ {[%clk 0:00:09.5]} 87. Ke5
{[%clk 0:00:17.8]} 87... Re8+ {[%clk 0:00:09]} 88. Kf4 {[%clk 0:00:18.3]} 88...
Rf8 {[%clk 0:00:08.7]} 89. Re6+ {[%clk 0:00:18.2]} 89... Kh5 {[%clk 0:00:09.5]}
90. Ra6 {[%clk 0:00:17.7]} 90... Rf7 {[%clk 0:00:08.4]} 91. Ra8 {[%clk
0:00:17.6]} 91... Rf8 {[%clk 0:00:08.6]} 92. Rxf8 {[%clk 0:00:17.5]} 92... Kg6
{[%clk 0:00:07.8]} 93. Rxf5 {[%clk 0:00:18.4]} 1-0

[Event "Late-Titled-Tuesday-Blitz-October-17-2023"]
[Site "Chess.com"]
[Date "2023.10.17"]
[Round "2"]
[White "2346PL"]
[Black "crosky"]
[Result "1-0"]
[WhiteElo "2528"]
[BlackElo "2334"]
[TimeControl "180+1"]
[EndTime "14:12:43 PDT"]
[Termination "2346PL won by resignation"]

1. Nf3 {[%clk 0:03:00.9]} 1... Nf6 {[%clk 0:02:59.1]} 2. g3 {[%clk 0:03:01]}
2... b5 {[%clk 0:02:59.3]} 3. Bg2 {[%clk 0:03:01.1]} 3... Bb7 {[%clk 0:03:00]}
4. O-O {[%clk 0:03:01.1]} 4... c5 {[%clk 0:03:00.7]} 5. d4 {[%clk 0:02:57.6]}
5... e6 {[%clk 0:03:00.3]} 6. b3 {[%clk 0:02:52.1]} 6... Be7 {[%clk 0:02:51.9]}
7. Bb2 {[%clk 0:02:51.2]} 7... O-O {[%clk 0:02:52]} 8. dxc5 {[%clk 0:02:51.6]}
8... Bxc5 {[%clk 0:02:51.9]} 9. Nbd2 {[%clk 0:02:51.1]} 9... d5 {[%clk
0:02:49.5]} 10. Ne5 {[%clk 0:02:49.6]} 10... Nbd7 {[%clk 0:02:44.6]} 11. c4
{[%clk 0:02:48.7]} 11... Nxe5 {[%clk 0:02:27.7]} 12. Bxe5 {[%clk 0:02:48.1]}
12... Ng4 {[%clk 0:02:03.4]} 13. Bb2 {[%clk 0:02:45.8]} 13... Qb6 {[%clk
0:02:03.2]} 14. e3 {[%clk 0:02:34]} 14... Bxe3 {[%clk 0:01:59.5]} 15. Qxg4
{[%clk 0:02:32.2]} 1-0

[Event "Late-Titled-Tuesday-Blitz-October-17-2023"]
[Site "Chess.com"]
[Date "2023.10.17"]
[Round "2"]
[White "Beca95"]
[Black "DanielTitichoca"]
[Result "1-0"]
[WhiteElo "2918"]
[BlackElo "2580"]
[TimeControl "180+1"]
[EndTime "14:14:17 PDT"]
[Termination "Beca95 won by resignation"]

1. e4 {[%clk 0:03:00.9]} 1... e5 {[%clk 0:02:57.9]} 2. Nf3 {[%clk 0:02:58.5]}
2... Nc6 {[%clk 0:02:58.5]} 3. Nc3 {[%clk 0:02:57.7]} 3... Nf6 {[%clk
0:02:58.1]} 4. Bb5 {[%clk 0:02:58.1]} 4... Bb4 {[%clk 0:02:55.3]} 5. O-O {[%clk
0:02:57.8]} 5... O-O {[%clk 0:02:54.1]} 6. Bxc6 {[%clk 0:02:57.9]} 6... dxc6
{[%clk 0:02:53.1]} 7. d3 {[%clk 0:02:58]} 7... Bxc3 {[%clk 0:02:46.4]} 8. bxc3
{[%clk 0:02:58.9]} 8... Qd6 {[%clk 0:02:40.8]} 9. h3 {[%clk 0:02:58.4]} 9... h6
{[%clk 0:02:35]} 10. Nh2 {[%clk 0:02:56.8]} 10... Rd8 {[%clk 0:02:31.5]} 11. Qe2
{[%clk 0:02:56.2]} 11... Qc5 {[%clk 0:02:30.9]} 12. c4 {[%clk 0:02:54.9]} 12...
b5 {[%clk 0:02:20.2]} 13. Be3 {[%clk 0:02:54.3]} 13... Qe7 {[%clk 0:02:17.8]}
14. cxb5 {[%clk 0:02:50.9]} 14... cxb5 {[%clk 0:02:18.7]} 15. f4 {[%clk
0:02:49]} 15... exf4 {[%clk 0:02:10.6]} 16. Rxf4 {[%clk 0:02:48.5]} 16... Re8
{[%clk 0:02:07.9]} 17. Raf1 {[%clk 0:02:46.2]} 17... Be6 {[%clk 0:02:02.5]} 18.
Rxf6 {[%clk 0:02:45.5]} 18... gxf6 {[%clk 0:02:01.5]} 19. Qh5 {[%clk 0:02:40.4]}
19... Qd6 {[%clk 0:00:55.2]} 20. Rxf6 {[%clk 0:02:12.5]} 20... Kf8 {[%clk
0:00:51.8]} 21. Bc5 {[%clk 0:02:07]} 1-0

[Event "Late-Titled-Tuesday-Blitz-October-17-2023"]
[Site "Chess.com"]
[Date "2023.10.17"]
[Round "2"]
[White "Nor1lsk"]
[Black "Kostukov_Alex"]
[Result "1-0"]
[WhiteElo "2712"]
[BlackElo "2393"]
[TimeControl "180+1"]
[EndTime "14:14:35 PDT"]
[Termination "Nor1lsk won by resignation"]

1. e4 {[%clk 0:03:00.9]} 1... c5 {[%clk 0:02:57.6]} 2. d3 {[%clk 0:03:00.1]}
2... g6 {[%clk 0:02:58.2]} 3. g3 {[%clk 0:03:00.3]} 3... Bg7 {[%clk 0:02:58.4]}
4. Bg2 {[%clk 0:03:00.8]} 4... Nc6 {[%clk 0:02:59.1]} 5. f4 {[%clk 0:03:01.5]}
5... d6 {[%clk 0:02:53.3]} 6. Nf3 {[%clk 0:03:01.9]} 6... e5 {[%clk 0:02:53.9]}
7. O-O {[%clk 0:03:01.9]} 7... Nge7 {[%clk 0:02:53.4]} 8. f5 {[%clk 0:03:02.1]}
8... gxf5 {[%clk 0:02:52.3]} 9. Nh4 {[%clk 0:03:02.4]} 9... fxe4 {[%clk
0:02:44.3]} 10. dxe4 {[%clk 0:03:02.7]} 10... Rf8 {[%clk 0:02:20]} 11. Qh5
{[%clk 0:02:57]} 11... h6 {[%clk 0:02:01.6]} 12. Bxh6 {[%clk 0:02:45.8]} 12...
Bxh6 {[%clk 0:01:56.9]} 13. Qxh6 {[%clk 0:02:45.6]} 13... Nd4 {[%clk 0:01:47]}
14. Na3 {[%clk 0:02:44.6]} 14... Be6 {[%clk 0:01:36.7]} 15. c3 {[%clk
0:02:38.1]} 15... Ndc6 {[%clk 0:01:36.1]} 16. Rad1 {[%clk 0:02:37.1]} 16... Kd7
{[%clk 0:01:21.9]} 17. Nf5 {[%clk 0:02:31.7]} 17... Nc8 {[%clk 0:01:06.4]} 18.
Nb5 {[%clk 0:02:31.2]} 18... Bxf5 {[%clk 0:00:52.8]} 19. Nxd6 {[%clk 0:02:23.2]}
1-0

[Event "Late-Titled-Tuesday-Blitz-October-17-2023"]
[Site "Chess.com"]
[Date "2023.10.17"]
[Round "2"]
[White "TheKingDoctor"]
[Black "familijatop71"]
[Result "1-0"]
[WhiteElo "2441"]
[BlackElo "2110"]
[TimeControl "180+1"]
[EndTime "14:14:41 PDT"]
[Termination "TheKingDoctor won by resignation"]

1. e4 {[%clk 0:03:00.9]} 1... c5 {[%clk 0:02:59.5]} 2. c3 {[%clk 0:03:00.9]}
2... d5 {[%clk 0:02:58.7]} 3. exd5 {[%clk 0:03:01.8]} 3... Qxd5 {[%clk
0:02:58.7]} 4. d4 {[%clk 0:03:02.7]} 4... Nc6 {[%clk 0:02:55.1]} 5. Nf3 {[%clk
0:03:03.6]} 5... Nf6 {[%clk 0:02:48.7]} 6. Be3 {[%clk 0:03:04.5]} 6... cxd4
{[%clk 0:02:13.1]} 7. cxd4 {[%clk 0:03:05.4]} 7... e6 {[%clk 0:02:03.2]} 8. Nc3
{[%clk 0:03:06.3]} 8... Bb4 {[%clk 0:01:58.5]} 9. Bd3 {[%clk 0:03:06.2]} 9... e5
{[%clk 0:01:30.8]} 10. O-O {[%clk 0:03:07.1]} 10... Bxc3 {[%clk 0:01:27.7]} 11.
bxc3 {[%clk 0:03:06.6]} 11... e4 {[%clk 0:01:27.4]} 12. c4 {[%clk 0:03:06.7]}
12... Qd8 {[%clk 0:01:05.4]} 13. d5 {[%clk 0:03:05.5]} 13... Ne7 {[%clk
0:00:37.8]} 14. Bc5 {[%clk 0:02:51.5]} 14... exf3 {[%clk 0:00:28.6]} 15. Re1
{[%clk 0:02:51.6]} 15... O-O {[%clk 0:00:17.9]} 16. Bxe7 {[%clk 0:02:51.3]}
16... Qd7 {[%clk 0:00:17.9]} 17. Qxf3 {[%clk 0:02:50.5]} 17... Re8 {[%clk
0:00:16]} 18. Bxf6 {[%clk 0:02:50.5]} 18... gxf6 {[%clk 0:00:15.1]} 19. Qh5
{[%clk 0:02:38.6]} 19... f5 {[%clk 0:00:13.6]} 20. Qg5+ {[%clk 0:02:36.2]} 20...
Kf8 {[%clk 0:00:12.2]} 21. Qh6+ {[%clk 0:02:36.3]} 21... Kg8 {[%clk 0:00:11.5]}
22. Bxf5 {[%clk 0:02:36.2]} 22... Qd8 {[%clk 0:00:06.5]} 23. Bxh7+ {[%clk
0:02:35]} 1-0

[Event "Late-Titled-Tuesday-Blitz-October-17-2023"]
[Site "Chess.com"]
[Date "2023.10.17"]
[Round "2"]
[White "Mikhail_Golubev"]
[Black "giomar27"]
[Result "1-0"]
[WhiteElo "2576"]
[BlackElo "2351"]
[TimeControl "180+1"]
[EndTime "14:15:03 PDT"]
[Termination "Mikhail_Golubev won by checkmate"]

1. e4 {[%clk 0:03:00.9]} 1... e5 {[%clk 0:02:59.2]} 2. Nf3 {[%clk 0:02:59.3]}
2... d5 {[%clk 0:02:59.5]} 3. exd5 {[%clk 0:02:56.9]} 3... e4 {[%clk 0:03:00.4]}
4. Qe2 {[%clk 0:02:54.1]} 4... Nf6 {[%clk 0:03:00.7]} 5. d3 {[%clk 0:02:51.6]}
5... Bb4+ {[%clk 0:03:01.3]} 6. c3 {[%clk 0:02:38.6]} 6... O-O {[%clk
0:03:02.2]} 7. dxe4 {[%clk 0:02:35.7]} 7... Bc5 {[%clk 0:03:02.2]} 8. Bg5 {[%clk
0:02:26.4]} 8... h6 {[%clk 0:02:59.7]} 9. Bxf6 {[%clk 0:02:23.4]} 9... Qxf6
{[%clk 0:02:59.5]} 10. Nbd2 {[%clk 0:02:23.3]} 10... c6 {[%clk 0:02:55.8]} 11.
e5 {[%clk 0:02:14.9]} 11... Qd8 {[%clk 0:02:54.5]} 12. d6 {[%clk 0:02:12.5]}
12... Bf5 {[%clk 0:02:53.2]} 13. g3 {[%clk 0:01:40]} 13... Re8 {[%clk
0:02:50.5]} 14. Bg2 {[%clk 0:01:38.3]} 14... Bxd6 {[%clk 0:02:46.1]} 15. O-O
{[%clk 0:01:37.2]} 15... Nd7 {[%clk 0:02:41.6]} 16. Nc4 {[%clk 0:01:34.7]} 16...
Bc7 {[%clk 0:02:38.5]} 17. Rad1 {[%clk 0:01:29.8]} 17... Qe7 {[%clk 0:02:38.1]}
18. Nh4 {[%clk 0:01:13.5]} 18... Bh7 {[%clk 0:02:25]} 19. f4 {[%clk 0:01:12]}
19... f6 {[%clk 0:02:22.6]} 20. Qg4 {[%clk 0:00:59.8]} 20... Nf8 {[%clk
0:02:13]} 21. Nd6 {[%clk 0:00:50.7]} 21... Red8 {[%clk 0:02:06.3]} 22. Nhf5
{[%clk 0:00:46.1]} 22... Bxf5 {[%clk 0:01:47.9]} 23. Nxf5 {[%clk 0:00:47]} 23...
Qe6 {[%clk 0:01:30.3]} 24. Qxg7# {[%clk 0:00:45.6]} 1-0

[Event "Late-Titled-Tuesday-Blitz-October-17-2023"]
[Site "Chess.com"]
[Date "2023.10.17"]
[Round "2"]
[White "ameetghasi100"]
[Black "as9killer2"]
[Result "1-0"]
[WhiteElo "2792"]
[BlackElo "2515"]
[TimeControl "180+1"]
[EndTime "14:15:07 PDT"]
[Termination "ameetghasi100 won by resignation"]

1. b3 {[%clk 0:03:00.9]} 1... d5 {[%clk 0:02:59.4]} 2. Bb2 {[%clk 0:03:01.3]}
2... Nc6 {[%clk 0:02:58.7]} 3. Nf3 {[%clk 0:03:01]} 3... Nf6 {[%clk 0:02:54.7]}
4. d4 {[%clk 0:03:01.1]} 4... Bg4 {[%clk 0:02:48]} 5. Nbd2 {[%clk 0:02:59.4]}
5... e6 {[%clk 0:02:46.6]} 6. a3 {[%clk 0:02:59.4]} 6... Ne4 {[%clk 0:02:45.2]}
7. h3 {[%clk 0:02:54.9]} 7... Bh5 {[%clk 0:02:41.1]} 8. c4 {[%clk 0:02:51.4]}
8... Be7 {[%clk 0:02:27.3]} 9. e3 {[%clk 0:02:47.8]} 9... Nxd2 {[%clk
0:02:21.6]} 10. Qxd2 {[%clk 0:02:45.8]} 10... Bxf3 {[%clk 0:02:21.5]} 11. gxf3
{[%clk 0:02:46.7]} 11... Bf6 {[%clk 0:02:18.2]} 12. f4 {[%clk 0:02:45.9]} 12...
a6 {[%clk 0:02:16.6]} 13. Rc1 {[%clk 0:02:42.2]} 13... O-O {[%clk 0:02:11.4]}
14. cxd5 {[%clk 0:02:32.3]} 14... exd5 {[%clk 0:01:57.1]} 15. Bd3 {[%clk
0:02:31.4]} 15... Re8 {[%clk 0:01:54.9]} 16. Kd1 {[%clk 0:02:03.1]} 16... Qd6
{[%clk 0:01:47.3]} 17. Rg1 {[%clk 0:02:01.2]} 17... b6 {[%clk 0:01:40.8]} 18.
Qc2 {[%clk 0:01:47.9]} 18... Nxd4 {[%clk 0:01:31.2]} 19. Qxc7 {[%clk 0:01:13.6]}
19... Qxc7 {[%clk 0:01:13]} 20. Rxc7 {[%clk 0:01:14.5]} 20... Ne6 {[%clk
0:01:13.4]} 21. Bxf6 {[%clk 0:01:14.1]} 21... Nxc7 {[%clk 0:01:13.4]} 22. Rxg7+
{[%clk 0:01:14.2]} 22... Kf8 {[%clk 0:01:05.7]} 23. Rxh7 {[%clk 0:01:12.4]} 1-0